[Event "*** Titled Tuesday Blitz"]
[Site "Chess.com"]
[Date "2020.11.03"]
[Round "4"]
[White "BanjoKazooieN64"]
[Black "arminmusovic"]
[Result "1-0"]
[WhiteElo "2384"]
[BlackElo "2565"]
[TimeControl "180+1"]
[EndTime "10:42:41 PST"]
[Termination "BanjoKazooieN64 won by checkmate"]

1. e4 {[%clk 0:03:00.9]} 1... c6 {[%clk 0:03:00.2]} 2. Nc3 {[%clk 0:02:44.5]}
2... d5 {[%clk 0:03:01.1]} 3. Nf3 {[%clk 0:02:43.6]} 3... dxe4 {[%clk
0:03:01.1]} 4. Nxe4 {[%clk 0:02:43.5]} 4... Nf6 {[%clk 0:03:01.8]} 5. Qe2 {[%clk
0:02:42.5]} 5... Nxe4 {[%clk 0:03:02.1]} 6. Qxe4 {[%clk 0:02:42.5]} 6... Qd5
{[%clk 0:03:03]} 7. Qh4 {[%clk 0:02:42.6]} 7... Qe6+ {[%clk 0:03:00.2]} 8. Be2
{[%clk 0:02:42.8]} 8... Qg6 {[%clk 0:03:00.6]} 9. O-O {[%clk 0:02:38.6]} 9...
Qxc2 {[%clk 0:03:00.7]} 10. Bc4 {[%clk 0:02:38.7]} 10... Qg6 {[%clk 0:02:59.8]}
11. Ne5 {[%clk 0:02:35.2]} 11... Qf6 {[%clk 0:02:48.1]} 12. Qxf6 {[%clk
0:02:26.2]} 12... gxf6 {[%clk 0:02:45.2]} 13. Nxf7 {[%clk 0:02:26.1]} 13... Rg8
{[%clk 0:02:35.8]} 14. Nd6+ {[%clk 0:02:26]} 14... exd6 {[%clk 0:02:36.6]} 15.
Bxg8 {[%clk 0:02:26.1]} 15... Bf5 {[%clk 0:02:32.9]} 16. Re1+ {[%clk 0:02:26.2]}
16... Kd8 {[%clk 0:02:32.6]} 17. d4 {[%clk 0:02:20.7]} 17... Na6 {[%clk
0:02:20.9]} 18. a3 {[%clk 0:02:00.4]} 18... Nc7 {[%clk 0:02:06.5]} 19. Bf4
{[%clk 0:01:56.4]} 19... Kd7 {[%clk 0:02:01.9]} 20. Bf7 {[%clk 0:01:54]} 20...
Bg6 {[%clk 0:01:54]} 21. Bb3 {[%clk 0:01:48.8]} 21... d5 {[%clk 0:01:37]} 22.
Bxc7 {[%clk 0:01:46.1]} 22... Kxc7 {[%clk 0:01:37.2]} 23. Re6 {[%clk 0:01:46.3]}
23... f5 {[%clk 0:01:31.6]} 24. Rae1 {[%clk 0:01:44.8]} 24... Kb6 {[%clk
0:01:14.1]} 25. Bc2 {[%clk 0:01:37]} 25... Bg7 {[%clk 0:01:09.3]} 26. Rd1 {[%clk
0:01:37]} 26... Rf8 {[%clk 0:01:03.7]} 27. Re7 {[%clk 0:01:33.8]} 27... Bf6
{[%clk 0:00:59.1]} 28. Re6 {[%clk 0:01:33.9]} 28... Kc7 {[%clk 0:00:55.7]} 29.
h3 {[%clk 0:01:14]} 29... Kd7 {[%clk 0:00:54.8]} 30. Re2 {[%clk 0:01:09.7]}
30... Kd6 {[%clk 0:00:30.1]} 31. g4 {[%clk 0:01:08.3]} 31... Rg8 {[%clk
0:00:27.5]} 32. Bxf5 {[%clk 0:00:58.7]} 32... Bxf5 {[%clk 0:00:27]} 33. f3
{[%clk 0:00:53.5]} 33... Bd7 {[%clk 0:00:24.5]} 34. Kg2 {[%clk 0:00:52.7]} 34...
h5 {[%clk 0:00:23.7]} 35. Kg3 {[%clk 0:00:51.7]} 35... h4+ {[%clk 0:00:24.1]}
36. Kg2 {[%clk 0:00:49.2]} 36... Bg5 {[%clk 0:00:23.5]} 37. Re5 {[%clk
0:00:48.5]} 37... Bf4 {[%clk 0:00:23.2]} 38. Rh5 {[%clk 0:00:48.5]} 38... Bg3
{[%clk 0:00:23.3]} 39. Rh6+ {[%clk 0:00:48.7]} 39... Kc7 {[%clk 0:00:23.6]} 40.
Rf6 {[%clk 0:00:35.2]} 40... Re8 {[%clk 0:00:20.8]} 41. f4 {[%clk 0:00:35.6]}
41... Re2+ {[%clk 0:00:18.6]} 42. Kf3 {[%clk 0:00:36]} 42... Rxb2 {[%clk
0:00:17.1]} 43. Rd3 {[%clk 0:00:29.3]} 43... Rf2+ {[%clk 0:00:16.5]} 44. Ke3
{[%clk 0:00:29.1]} 44... Rh2 {[%clk 0:00:16.2]} 45. f5 {[%clk 0:00:23.8]} 45...
Rxh3 {[%clk 0:00:15.8]} 46. g5 {[%clk 0:00:23.6]} 46... Bf4+ {[%clk 0:00:13.5]}
47. Kxf4 {[%clk 0:00:23.3]} 47... Rxd3 {[%clk 0:00:13.6]} 48. g6 {[%clk
0:00:20]} 48... h3 {[%clk 0:00:07.9]} 49. g7 {[%clk 0:00:19.6]} 49... h2 {[%clk
0:00:06.6]} 50. Rh6 {[%clk 0:00:18.4]} 50... Rxd4+ {[%clk 0:00:04.1]} 51. Kg5
{[%clk 0:00:17.1]} 51... Rd2 {[%clk 0:00:04.3]} 52. Kf6 {[%clk 0:00:15]} 52...
Rg2 {[%clk 0:00:03.6]} 53. Rxh2 {[%clk 0:00:15]} 53... Rxh2 {[%clk 0:00:02.3]}
54. g8=Q {[%clk 0:00:15]} 54... Rf2 {[%clk 0:00:03.2]} 55. Ke7 {[%clk
0:00:12.7]} 55... Rxf5 {[%clk 0:00:04.1]} 56. Qd8# {[%clk 0:00:12.6]} 1-0

[Event "*** Titled Tuesday Blitz"]
[Site "Chess.com"]
[Date "2020.11.03"]
[Round "4"]
[White "IngOscarArdila"]
[Black "Trickov"]
[Result "0-1"]
[WhiteElo "2114"]
[BlackElo "2313"]
[TimeControl "180+1"]
[EndTime "10:42:42 PST"]
[Termination "Trickov won by checkmate"]

1. d4 {[%clk 0:03:00.9]} 1... d5 {[%clk 0:02:59]} 2. c4 {[%clk 0:02:58.1]} 2...
c6 {[%clk 0:02:54.7]} 3. cxd5 {[%clk 0:02:55.8]} 3... cxd5 {[%clk 0:02:51.9]} 4.
Nc3 {[%clk 0:02:56.3]} 4... Nf6 {[%clk 0:02:52.3]} 5. Bf4 {[%clk 0:02:56.3]}
5... Nc6 {[%clk 0:02:51.5]} 6. e3 {[%clk 0:02:56.1]} 6... a6 {[%clk 0:02:48.3]}
7. Nf3 {[%clk 0:02:55.7]} 7... Bg4 {[%clk 0:02:47.3]} 8. Be2 {[%clk 0:02:52.5]}
8... e6 {[%clk 0:02:46.3]} 9. Qb3 {[%clk 0:02:47.9]} 9... Bb4 {[%clk 0:02:44.3]}
10. a3 {[%clk 0:02:42.7]} 10... Bxc3+ {[%clk 0:02:43.2]} 11. bxc3 {[%clk
0:02:42.7]} 11... Na5 {[%clk 0:02:37.2]} 12. Qb4 {[%clk 0:02:35.7]} 12... Rc8
{[%clk 0:02:22.5]} 13. Rb1 {[%clk 0:02:30.4]} 13... Ne4 {[%clk 0:02:06.3]} 14.
Rc1 {[%clk 0:01:33.7]} 14... Bxf3 {[%clk 0:01:47.5]} 15. gxf3 {[%clk 0:01:26.9]}
15... Nf6 {[%clk 0:01:44.7]} 16. Rg1 {[%clk 0:01:24.9]} 16... Nh5 {[%clk
0:01:16]} 17. Be5 {[%clk 0:01:19.7]} 17... f6 {[%clk 0:01:14]} 18. Bg3 {[%clk
0:01:10.5]} 18... Kf7 {[%clk 0:01:09.7]} 19. e4 {[%clk 0:00:55]} 19... Nxg3
{[%clk 0:01:03.1]} 20. Rxg3 {[%clk 0:00:51.4]} 20... Re8 {[%clk 0:01:02]} 21.
Kf1 {[%clk 0:00:35.6]} 21... Re7 {[%clk 0:01:02]} 22. e5 {[%clk 0:00:34.5]}
22... f5 {[%clk 0:01:00.7]} 23. f4 {[%clk 0:00:34.7]} 23... Nc4 {[%clk 0:00:58]}
24. Bxc4 {[%clk 0:00:28.4]} 24... Rxc4 {[%clk 0:00:57.3]} 25. Qb3 {[%clk
0:00:27.9]} 25... Rec7 {[%clk 0:00:56.9]} 26. Rb1 {[%clk 0:00:21.8]} 26... Qh4
{[%clk 0:00:54.9]} 27. Kg2 {[%clk 0:00:13.1]} 27... Qxf4 {[%clk 0:00:53.5]} 28.
Qd1 {[%clk 0:00:13.2]} 28... g6 {[%clk 0:00:48]} 29. Rf3 {[%clk 0:00:11]} 29...
Qe4 {[%clk 0:00:44.4]} 30. Kg1 {[%clk 0:00:08.9]} 30... b5 {[%clk 0:00:42.2]}
31. Re3 {[%clk 0:00:09.1]} 31... Qg4+ {[%clk 0:00:36.8]} 32. Qxg4 {[%clk
0:00:09]} 32... fxg4 {[%clk 0:00:36.5]} 33. Kg2 {[%clk 0:00:09.9]} 33... Rxc3
{[%clk 0:00:35.4]} 34. Rxc3 {[%clk 0:00:09.5]} 34... Rxc3 {[%clk 0:00:34.8]} 35.
Ra1 {[%clk 0:00:10.4]} 35... Rc4 {[%clk 0:00:33.7]} 36. Kg3 {[%clk 0:00:08.9]}
36... Rxd4 {[%clk 0:00:33.3]} 37. Rc1 {[%clk 0:00:09.4]} 37... Rc4 {[%clk
0:00:32.8]} 38. Rb1 {[%clk 0:00:09.8]} 38... h5 {[%clk 0:00:32.2]} 39. h3 {[%clk
0:00:09.8]} 39... gxh3 {[%clk 0:00:31.2]} 40. Kxh3 {[%clk 0:00:10.1]} 40... Kg7
{[%clk 0:00:31.5]} 41. f3 {[%clk 0:00:10.1]} 41... g5 {[%clk 0:00:30.3]} 42. Kg3
{[%clk 0:00:11]} 42... Kg6 {[%clk 0:00:29]} 43. Rh1 {[%clk 0:00:10.3]} 43... Ra4
{[%clk 0:00:26.9]} 44. Rc1 {[%clk 0:00:09]} 44... Rxa3 {[%clk 0:00:24.9]} 45.
Rc6 {[%clk 0:00:09]} 45... Kf5 {[%clk 0:00:23.9]} 46. Rc8 {[%clk 0:00:07.9]}
46... g4 {[%clk 0:00:23.4]} 47. Rf8+ {[%clk 0:00:07.8]} 47... Kxe5 {[%clk
0:00:23.5]} 48. Rh8 {[%clk 0:00:08]} 48... Rxf3+ {[%clk 0:00:23.1]} 49. Kg2
{[%clk 0:00:08.9]} 49... Rh3 {[%clk 0:00:22.9]} 50. Ra8 {[%clk 0:00:08.5]} 50...
Ra3 {[%clk 0:00:21.2]} 51. Rh8 {[%clk 0:00:08.4]} 51... Kf4 {[%clk 0:00:19.7]}
52. Rxh5 {[%clk 0:00:08.1]} 52... Ra2+ {[%clk 0:00:20]} 53. Kf1 {[%clk
0:00:08.4]} 53... e5 {[%clk 0:00:20.4]} 54. Rh8 {[%clk 0:00:07.6]} 54... d4
{[%clk 0:00:20.3]} 55. Ke1 {[%clk 0:00:07.8]} 55... Ke3 {[%clk 0:00:19.5]} 56.
Rf8 {[%clk 0:00:08.7]} 56... Ra1# {[%clk 0:00:17.2]} 0-1

[Event "*** Titled Tuesday Blitz"]
[Site "Chess.com"]
[Date "2020.11.03"]
[Round "4"]
[White "S2PAc"]
[Black "Mikhail_Golubev"]
[Result "1-0"]
[WhiteElo "2858"]
[BlackElo "2551"]
[TimeControl "180+1"]
[EndTime "10:42:44 PST"]
[Termination "S2PAc won on time"]

1. d4 {[%clk 0:03:00.9]} 1... Nf6 {[%clk 0:02:59.4]} 2. g3 {[%clk 0:03:01.4]}
2... c5 {[%clk 0:02:56.7]} 3. d5 {[%clk 0:03:01]} 3... e6 {[%clk 0:02:56.1]} 4.
c4 {[%clk 0:03:01.5]} 4... exd5 {[%clk 0:02:56.1]} 5. cxd5 {[%clk 0:03:02.4]}
5... d6 {[%clk 0:02:56.2]} 6. Nc3 {[%clk 0:03:02.7]} 6... g6 {[%clk 0:02:56.3]}
7. Bg2 {[%clk 0:03:03.4]} 7... Bg7 {[%clk 0:02:56.3]} 8. Nf3 {[%clk 0:03:04.1]}
8... O-O {[%clk 0:02:56.3]} 9. O-O {[%clk 0:03:04.8]} 9... Re8 {[%clk
0:02:54.9]} 10. Bf4 {[%clk 0:03:05.3]} 10... a6 {[%clk 0:02:53.2]} 11. a4 {[%clk
0:03:05]} 11... h6 {[%clk 0:02:31.4]} 12. Qc1 {[%clk 0:03:01.5]} 12... Kh7
{[%clk 0:02:30.7]} 13. Re1 {[%clk 0:02:55.1]} 13... Bf5 {[%clk 0:02:17]} 14. h3
{[%clk 0:02:50.9]} 14... Ne4 {[%clk 0:02:13]} 15. Nd2 {[%clk 0:02:38.3]} 15...
Nxc3 {[%clk 0:01:56.3]} 16. bxc3 {[%clk 0:02:39.2]} 16... g5 {[%clk 0:01:56.4]}
17. Be3 {[%clk 0:02:38.9]} 17... Nd7 {[%clk 0:01:55.2]} 18. Nc4 {[%clk
0:02:24.3]} 18... Qf6 {[%clk 0:01:44.7]} 19. Bd2 {[%clk 0:02:18.1]} 19... Qg6
{[%clk 0:01:25.6]} 20. Ne3 {[%clk 0:01:21.6]} 20... Be4 {[%clk 0:01:10.9]} 21.
f3 {[%clk 0:01:21.4]} 21... Nf6 {[%clk 0:00:59.9]} 22. fxe4 {[%clk 0:01:14.3]}
22... Nxe4 {[%clk 0:01:00.8]} 23. g4 {[%clk 0:01:00.7]} 23... Ng3 {[%clk
0:00:38.6]} 24. Qb1 {[%clk 0:00:50.5]} 24... Qxb1 {[%clk 0:00:29.5]} 25. Raxb1
{[%clk 0:00:51.4]} 25... b5 {[%clk 0:00:29.8]} 26. Kf2 {[%clk 0:00:47.4]} 26...
Ne4+ {[%clk 0:00:29.1]} 27. Bxe4+ {[%clk 0:00:47.4]} 27... Rxe4 {[%clk 0:00:30]}
28. axb5 {[%clk 0:00:47.6]} 28... axb5 {[%clk 0:00:30.3]} 29. Nf5 {[%clk
0:00:48.1]} 29... Ra2 {[%clk 0:00:28.5]} 30. Nxg7 {[%clk 0:00:41.1]} 30... Rxd2
{[%clk 0:00:26]} 31. Nf5 {[%clk 0:00:41.2]} 31... Rxd5 {[%clk 0:00:25.4]} 32.
Rxb5 {[%clk 0:00:37.7]} 32... h5 {[%clk 0:00:23]} 33. Rg1 {[%clk 0:00:16]} 33...
h4 {[%clk 0:00:13.7]} 34. Rb2 {[%clk 0:00:10.9]} 34... Rf4+ {[%clk 0:00:12.7]}
35. Ke1 {[%clk 0:00:09.9]} 35... Re5 {[%clk 0:00:10.8]} 36. Rd2 {[%clk
0:00:08.7]} 36... Rc4 {[%clk 0:00:09.1]} 37. Nxd6 {[%clk 0:00:05.3]} 37... Rxc3
{[%clk 0:00:07.7]} 38. Nxf7 {[%clk 0:00:06.2]} 38... Re7 {[%clk 0:00:03.2]} 39.
Nxg5+ {[%clk 0:00:05.9]} 39... Kg6 {[%clk 0:00:03.9]} 40. Nf3 {[%clk 0:00:06.8]}
40... Rxf3 {[%clk 0:00:02.9]} 41. Rd6+ {[%clk 0:00:05.4]} 41... Rf6 {[%clk
0:00:02.7]} 42. Rxf6+ {[%clk 0:00:05]} 42... Kxf6 {[%clk 0:00:03.2]} 43. Rf1+
{[%clk 0:00:05.9]} 43... Ke5 {[%clk 0:00:03.4]} 44. Rf5+ {[%clk 0:00:06]} 44...
Kd4 {[%clk 0:00:03.6]} 45. Rh5 {[%clk 0:00:03.8]} 45... c4 {[%clk 0:00:03.5]}
46. Rxh4 {[%clk 0:00:03.9]} 46... c3 {[%clk 0:00:03.3]} 47. Rh8 {[%clk
0:00:04.2]} 47... Ke3 {[%clk 0:00:02.6]} 48. Rc8 {[%clk 0:00:03.4]} 48... Kd4
{[%clk 0:00:01.4]} 49. Kd1 {[%clk 0:00:03.1]} 49... Rh7 {[%clk 0:00:01.4]} 50.
Kc2 {[%clk 0:00:01.2]} 1-0

[Event "*** Titled Tuesday Blitz"]
[Site "Chess.com"]
[Date "2020.11.03"]
[Round "4"]
[White "Firouzja2003"]
[Black "Onischuk_V"]
[Result "0-1"]
[WhiteElo "3055"]
[BlackElo "2837"]
[TimeControl "180+1"]
[EndTime "10:42:46 PST"]
[Termination "Onischuk_V won on time"]

1. g3 {[%clk 0:03:00.9]} 1... g6 {[%clk 0:02:59.7]} 2. Bg2 {[%clk 0:03:00.5]}
2... Bg7 {[%clk 0:03:00.4]} 3. e3 {[%clk 0:02:59.1]} 3... d6 {[%clk 0:03:00.7]}
4. Ne2 {[%clk 0:02:58.9]} 4... Nf6 {[%clk 0:03:01.4]} 5. O-O {[%clk 0:02:58.9]}
5... O-O {[%clk 0:03:02]} 6. d4 {[%clk 0:02:58.9]} 6... e5 {[%clk 0:03:00.5]} 7.
c4 {[%clk 0:02:58.7]} 7... Re8 {[%clk 0:02:55.9]} 8. Nbc3 {[%clk 0:02:58.2]}
8... e4 {[%clk 0:02:54.3]} 9. h3 {[%clk 0:02:58.2]} 9... h5 {[%clk 0:02:53.7]}
10. Nf4 {[%clk 0:02:52.3]} 10... Bf5 {[%clk 0:02:47]} 11. f3 {[%clk 0:02:41.3]}
11... exf3 {[%clk 0:02:37.3]} 12. Qxf3 {[%clk 0:02:42.2]} 12... Nc6 {[%clk
0:02:01.9]} 13. Nxh5 {[%clk 0:02:41.3]} 13... Nxh5 {[%clk 0:02:01.8]} 14. g4
{[%clk 0:02:42]} 14... Bd3 {[%clk 0:01:56.4]} 15. Rd1 {[%clk 0:02:05.9]} 15...
Nf4 {[%clk 0:01:54.2]} 16. Qxf4 {[%clk 0:02:03.6]} 16... Bxc4 {[%clk 0:01:54.3]}
17. Bd2 {[%clk 0:01:57.5]} 17... Nb4 {[%clk 0:01:17.3]} 18. b3 {[%clk
0:01:50.9]} 18... Ba6 {[%clk 0:01:03.5]} 19. a3 {[%clk 0:01:49.9]} 19... Nd3
{[%clk 0:01:01.2]} 20. Qf3 {[%clk 0:00:48.2]} 20... c5 {[%clk 0:01:01]} 21. dxc5
{[%clk 0:00:48.5]} 21... dxc5 {[%clk 0:01:00.6]} 22. Nd5 {[%clk 0:00:48.5]}
22... Ne5 {[%clk 0:00:40.6]} 23. Qg3 {[%clk 0:00:46.5]} 23... Be2 {[%clk
0:00:37.6]} 24. Re1 {[%clk 0:00:44.3]} 24... Nd3 {[%clk 0:00:35.8]} 25. Rxe2
{[%clk 0:00:32.5]} 25... Bxa1 {[%clk 0:00:35.5]} 26. e4 {[%clk 0:00:33.2]} 26...
Bd4+ {[%clk 0:00:33.7]} 27. Kh1 {[%clk 0:00:30.6]} 27... Ne5 {[%clk 0:00:29]}
28. Re1 {[%clk 0:00:29.5]} 28... Nd7 {[%clk 0:00:22.9]} 29. Rf1 {[%clk
0:00:29.9]} 29... Nb6 {[%clk 0:00:16.8]} 30. Qf3 {[%clk 0:00:15.2]} 30... Rf8
{[%clk 0:00:11.7]} 31. Bh6 {[%clk 0:00:13.3]} 31... Nxd5 {[%clk 0:00:10.7]} 32.
Bxf8 {[%clk 0:00:12.9]} 32... Qxf8 {[%clk 0:00:10.7]} 33. exd5 {[%clk
0:00:13.1]} 33... Rd8 {[%clk 0:00:10]} 34. a4 {[%clk 0:00:10.7]} 34... Kg7
{[%clk 0:00:09.9]} 35. Qf4 {[%clk 0:00:10.7]} 35... Rd7 {[%clk 0:00:09.3]} 36.
g5 {[%clk 0:00:10.8]} 36... Qd6 {[%clk 0:00:09]} 37. Qg4 {[%clk 0:00:10.6]}
37... Re7 {[%clk 0:00:08.9]} 38. Qh4 {[%clk 0:00:07.2]} 38... Qe5 {[%clk
0:00:08.3]} 39. Qg4 {[%clk 0:00:05.9]} 39... Qd6 {[%clk 0:00:07]} 40. b4 {[%clk
0:00:06]} 40... b6 {[%clk 0:00:06.7]} 41. bxc5 {[%clk 0:00:06.6]} 41... bxc5
{[%clk 0:00:06.6]} 42. Qf3 {[%clk 0:00:07.1]} 42... Be5 {[%clk 0:00:06.5]} 43.
h4 {[%clk 0:00:06.6]} 43... c4 {[%clk 0:00:06.5]} 44. h5 {[%clk 0:00:06.1]}
44... gxh5 {[%clk 0:00:06.8]} 45. Qxh5 {[%clk 0:00:07]} 45... c3 {[%clk
0:00:07]} 46. Be4 {[%clk 0:00:07]} 46... Kf8 {[%clk 0:00:04.9]} 47. g6 {[%clk
0:00:06.4]} 47... Bg7 {[%clk 0:00:04.6]} 48. Qf5 {[%clk 0:00:05.9]} 48... Qe5
{[%clk 0:00:01.5]} 49. Qc8+ {[%clk 0:00:05.8]} 49... Re8 {[%clk 0:00:02.1]} 50.
Rxf7+ {[%clk 0:00:05.9]} 50... Kg8 {[%clk 0:00:02.7]} 51. Rxg7+ {[%clk
0:00:05.9]} 51... Kxg7 {[%clk 0:00:02.6]} 52. Qd7+ {[%clk 0:00:05.5]} 52... Re7
{[%clk 0:00:03.2]} 0-1

[Event "*** Titled Tuesday Blitz"]
[Site "Chess.com"]
[Date "2020.11.03"]
[Round "4"]
[White "RobPeresian"]
[Black "Sofiia_Hryzlova"]
[Result "1-0"]
[WhiteElo "2461"]
[BlackElo "2299"]
[TimeControl "180+1"]
[EndTime "10:42:46 PST"]
[Termination "RobPeresian won by checkmate"]

1. Nf3 {[%clk 0:03:00.9]} 1... d5 {[%clk 0:02:57.2]} 2. d4 {[%clk 0:03:00.6]}
2... Nf6 {[%clk 0:02:54.3]} 3. c4 {[%clk 0:02:59.7]} 3... c6 {[%clk 0:02:54.2]}
4. Nc3 {[%clk 0:02:59.9]} 4... e6 {[%clk 0:02:54]} 5. Bg5 {[%clk 0:02:59.3]}
5... Nbd7 {[%clk 0:02:50.4]} 6. e3 {[%clk 0:02:59.3]} 6... h6 {[%clk 0:02:50.5]}
7. Bh4 {[%clk 0:02:58.9]} 7... g5 {[%clk 0:02:51]} 8. Bg3 {[%clk 0:02:58.4]}
8... Nh5 {[%clk 0:02:51.5]} 9. Be5 {[%clk 0:02:54.7]} 9... f6 {[%clk 0:02:40.4]}
10. Nd2 {[%clk 0:02:51.1]} 10... Ng7 {[%clk 0:02:31.1]} 11. Bg3 {[%clk
0:02:46.6]} 11... Bb4 {[%clk 0:02:28.5]} 12. Bd3 {[%clk 0:02:43.3]} 12... f5
{[%clk 0:02:27.1]} 13. h4 {[%clk 0:02:39.1]} 13... g4 {[%clk 0:02:21.8]} 14. Qc2
{[%clk 0:02:15.7]} 14... Nf6 {[%clk 0:02:15.6]} 15. Be5 {[%clk 0:02:14.4]} 15...
Be7 {[%clk 0:02:12.6]} 16. c5 {[%clk 0:02:09.6]} 16... Kf7 {[%clk 0:02:08.8]}
17. g3 {[%clk 0:02:09.3]} 17... Qd7 {[%clk 0:02:02.5]} 18. O-O {[%clk 0:02:09]}
18... b5 {[%clk 0:01:59.6]} 19. b4 {[%clk 0:02:05.2]} 19... Bb7 {[%clk
0:01:57.5]} 20. a4 {[%clk 0:02:04.9]} 20... a6 {[%clk 0:01:56.5]} 21. Ra2 {[%clk
0:01:55]} 21... Nfe8 {[%clk 0:01:43.5]} 22. Rfa1 {[%clk 0:01:50.8]} 22... Nc7
{[%clk 0:01:42.3]} 23. Ne2 {[%clk 0:01:40.1]} 23... Rhc8 {[%clk 0:01:37.5]} 24.
Nf4 {[%clk 0:01:36.6]} 24... Nce8 {[%clk 0:01:32.3]} 25. f3 {[%clk 0:01:35.3]}
25... h5 {[%clk 0:01:32.1]} 26. fxg4 {[%clk 0:01:31.2]} 26... hxg4 {[%clk
0:01:31.4]} 27. Rf1 {[%clk 0:01:28.5]} 27... Nf6 {[%clk 0:01:29.5]} 28. Nb3
{[%clk 0:01:18.8]} 28... Rh8 {[%clk 0:01:18.1]} 29. Nc1 {[%clk 0:01:10.3]} 29...
Ngh5 {[%clk 0:01:10.4]} 30. Nxh5 {[%clk 0:01:07]} 30... Rxh5 {[%clk 0:01:09.6]}
31. Ne2 {[%clk 0:01:07]} 31... Rah8 {[%clk 0:01:04.3]} 32. axb5 {[%clk
0:01:03.9]} 32... cxb5 {[%clk 0:01:00.5]} 33. Nf4 {[%clk 0:00:59.6]} 33... Qc6
{[%clk 0:00:57.5]} 34. Nxh5 {[%clk 0:00:56.4]} 34... Rxh5 {[%clk 0:00:56.5]} 35.
Qd1 {[%clk 0:00:50.5]} 35... Bc8 {[%clk 0:00:53.6]} 36. Raf2 {[%clk 0:00:49.2]}
36... Kg7 {[%clk 0:00:51.5]} 37. Rf4 {[%clk 0:00:46.9]} 37... Bd8 {[%clk
0:00:46.7]} 38. Rxg4+ {[%clk 0:00:40.1]} 38... Kf7 {[%clk 0:00:35.7]} 39. Rg5
{[%clk 0:00:36.1]} 39... Rh7 {[%clk 0:00:34.9]} 40. g4 {[%clk 0:00:28.9]} 40...
Ne4 {[%clk 0:00:28.9]} 41. gxf5 {[%clk 0:00:21.7]} 41... Bxg5 {[%clk 0:00:25]}
42. fxe6+ {[%clk 0:00:21.5]} 42... Ke7 {[%clk 0:00:21.4]} 43. Bxe4 {[%clk
0:00:17.5]} 43... dxe4 {[%clk 0:00:20.4]} 44. hxg5 {[%clk 0:00:17.7]} 44... Bxe6
{[%clk 0:00:18.8]} 45. Qe2 {[%clk 0:00:16.1]} 45... Qd5 {[%clk 0:00:12.4]} 46.
Qf2 {[%clk 0:00:15.9]} 46... Kd7 {[%clk 0:00:12]} 47. Qf8 {[%clk 0:00:15.3]}
47... Rf7 {[%clk 0:00:11.7]} 48. Rxf7+ {[%clk 0:00:14.4]} 48... Bxf7 {[%clk
0:00:12.6]} 49. Qb8 {[%clk 0:00:11.7]} 49... Qe6 {[%clk 0:00:12.5]} 50. Qb7+
{[%clk 0:00:07.9]} 50... Ke8 {[%clk 0:00:12.6]} 51. Qa8+ {[%clk 0:00:06.8]}
51... Ke7 {[%clk 0:00:11.8]} 52. Bf6+ {[%clk 0:00:06]} 52... Kd7 {[%clk
0:00:12.1]} 53. Qb7+ {[%clk 0:00:05.9]} 53... Ke8 {[%clk 0:00:10.3]} 54. Qb8+
{[%clk 0:00:06.2]} 54... Kd7 {[%clk 0:00:10.4]} 55. Qd8+ {[%clk 0:00:06.8]}
55... Kc6 {[%clk 0:00:09.9]} 56. d5+ {[%clk 0:00:07]} 56... Qxd5 {[%clk
0:00:09.7]} 57. Qc8# {[%clk 0:00:06.2]} 1-0

[Event "*** Titled Tuesday Blitz"]
[Site "Chess.com"]
[Date "2020.11.03"]
[Round "4"]
[White "KuzubovYuriy"]
[Black "Sibelephant"]
[Result "1/2-1/2"]
[WhiteElo "2830"]
[BlackElo "3086"]
[TimeControl "180+1"]
[EndTime "10:42:47 PST"]
[Termination "Game drawn by repetition"]

1. d4 {[%clk 0:03:00.9]} 1... Nf6 {[%clk 0:02:59.9]} 2. c4 {[%clk 0:03:00]} 2...
g6 {[%clk 0:03:00.3]} 3. Nf3 {[%clk 0:02:57.4]} 3... Bg7 {[%clk 0:03:00.2]} 4.
g3 {[%clk 0:02:57.9]} 4... c6 {[%clk 0:03:00.7]} 5. Bg2 {[%clk 0:02:57.4]} 5...
d5 {[%clk 0:03:01]} 6. O-O {[%clk 0:02:56.9]} 6... O-O {[%clk 0:03:01.1]} 7. Qb3
{[%clk 0:02:56.5]} 7... a5 {[%clk 0:03:00.1]} 8. cxd5 {[%clk 0:02:53.2]} 8... a4
{[%clk 0:03:00.1]} 9. Qd1 {[%clk 0:02:51.7]} 9... cxd5 {[%clk 0:03:00.3]} 10.
Nc3 {[%clk 0:02:51.3]} 10... Qa5 {[%clk 0:03:00.3]} 11. Bd2 {[%clk 0:02:46.6]}
11... Nc6 {[%clk 0:02:53.3]} 12. e3 {[%clk 0:02:32.8]} 12... Bf5 {[%clk
0:02:32.1]} 13. Ne5 {[%clk 0:02:18.9]} 13... Qa6 {[%clk 0:02:31.7]} 14. Re1
{[%clk 0:02:12]} 14... Rfd8 {[%clk 0:01:53.6]} 15. f4 {[%clk 0:02:05.9]} 15...
a3 {[%clk 0:01:36.8]} 16. bxa3 {[%clk 0:01:53.7]} 16... Qxa3 {[%clk 0:01:33.6]}
17. g4 {[%clk 0:01:26.5]} 17... Nxe5 {[%clk 0:00:41.8]} 18. fxe5 {[%clk
0:01:25.6]} 18... Bxg4 {[%clk 0:00:31.9]} 19. Qc1 {[%clk 0:01:18.8]} 19... Ne4
{[%clk 0:00:28]} 20. Qxa3 {[%clk 0:01:09.7]} 20... Rxa3 {[%clk 0:00:26.9]} 21.
Nxe4 {[%clk 0:01:09.1]} 21... dxe4 {[%clk 0:00:27.1]} 22. Bb4 {[%clk 0:01:07.2]}
22... Ra4 {[%clk 0:00:20.3]} 23. Bxe7 {[%clk 0:01:06.3]} 23... Re8 {[%clk
0:00:19.5]} 24. Bc5 {[%clk 0:01:03.1]} 24... f6 {[%clk 0:00:11.9]} 25. exf6
{[%clk 0:01:02.3]} 25... Bxf6 {[%clk 0:00:11.9]} 26. a3 {[%clk 0:00:48.8]} 26...
Bh4 {[%clk 0:00:12]} 27. Rec1 {[%clk 0:00:38.3]} 27... Bg5 {[%clk 0:00:11.7]}
28. Rc3 {[%clk 0:00:37.2]} 28... Rc8 {[%clk 0:00:09.5]} 29. Rb1 {[%clk
0:00:34.4]} 29... Bf3 {[%clk 0:00:04.6]} 30. Bxf3 {[%clk 0:00:22.6]} 30... exf3
{[%clk 0:00:04.7]} 31. Kf2 {[%clk 0:00:21]} 31... Ra6 {[%clk 0:00:04.7]} 32.
Kxf3 {[%clk 0:00:19.6]} 32... b6 {[%clk 0:00:04.6]} 33. Bb4 {[%clk 0:00:18.9]}
33... Rxc3 {[%clk 0:00:05.3]} 34. Bxc3 {[%clk 0:00:19.3]} 34... Rxa3 {[%clk
0:00:06]} 35. Bd2 {[%clk 0:00:18.8]} 35... Ra2 {[%clk 0:00:06.6]} 36. Ke2 {[%clk
0:00:17.4]} 36... Bd8 {[%clk 0:00:06.7]} 37. Kd3 {[%clk 0:00:16.9]} 37... Ra3+
{[%clk 0:00:07.1]} 38. Bc3 {[%clk 0:00:16.5]} 38... Bc7 {[%clk 0:00:04.9]} 39.
h3 {[%clk 0:00:15.6]} 39... Ra2 {[%clk 0:00:05.3]} 40. d5 {[%clk 0:00:14.6]}
40... Kf7 {[%clk 0:00:05]} 41. Bd4 {[%clk 0:00:14.2]} 41... Rh2 {[%clk
0:00:04.7]} 42. Rc1 {[%clk 0:00:14.2]} 42... Bd6 {[%clk 0:00:04.5]} 43. Rc6
{[%clk 0:00:14]} 43... Ke7 {[%clk 0:00:04.9]} 44. Rxb6 {[%clk 0:00:12.9]} 44...
Rxh3 {[%clk 0:00:05.3]} 45. Rb7+ {[%clk 0:00:12.9]} 45... Ke8 {[%clk 0:00:05.8]}
46. Kc4 {[%clk 0:00:12.5]} 46... Rh5 {[%clk 0:00:03.1]} 47. e4 {[%clk
0:00:12.1]} 47... Rh4 {[%clk 0:00:03.1]} 48. Kd3 {[%clk 0:00:06.5]} 48... Rh3+
{[%clk 0:00:03.7]} 49. Ke2 {[%clk 0:00:06.3]} 49... Rh4 {[%clk 0:00:04.3]} 50.
Kf3 {[%clk 0:00:06.7]} 50... Rh3+ {[%clk 0:00:04.7]} 51. Kg2 {[%clk 0:00:06.1]}
51... Rh4 {[%clk 0:00:02.8]} 52. Kf3 {[%clk 0:00:06.1]} 52... Rh3+ {[%clk
0:00:03.2]} 53. Kf2 {[%clk 0:00:05.2]} 53... Rh4 {[%clk 0:00:03.4]} 54. Kf3
{[%clk 0:00:04.7]} 1/2-1/2